[Event "Late-Titled-Tuesday-Blitz-January-30-2024"]
[Site "Chess.com"]
[Date "2024.01.30"]
[Round "9"]
[White "jcmesafischer"]
[Black "a-z30"]
[Result "1-0"]
[WhiteElo "2373"]
[BlackElo "2510"]
[TimeControl "180+1"]
[EndTime "15:45:18 PST"]
[Termination "jcmesafischer won by resignation"]

1. e4 {[%clk 0:02:50.3]} 1... d6 {[%clk 0:03:00.9]} 2. d4 {[%clk 0:02:47.6]}
2... Nf6 {[%clk 0:03:00.8]} 3. Nc3 {[%clk 0:02:47.5]} 3... g6 {[%clk 0:03:01]}
4. Nf3 {[%clk 0:02:47.1]} 4... Bg7 {[%clk 0:03:01.2]} 5. Be3 {[%clk 0:02:45.6]}
5... O-O {[%clk 0:03:01]} 6. Qd2 {[%clk 0:02:45.4]} 6... Bg4 {[%clk 0:03:00.5]}
7. Be2 {[%clk 0:02:43.2]} 7... Nc6 {[%clk 0:02:59.7]} 8. d5 {[%clk 0:02:39.8]}
8... Bxf3 {[%clk 0:02:57.8]} 9. Bxf3 {[%clk 0:02:36.1]} 9... Ne5 {[%clk
0:02:58.7]} 10. Be2 {[%clk 0:02:34.1]} 10... c6 {[%clk 0:02:58.9]} 11. Bh6
{[%clk 0:02:29.8]} 11... Bxh6 {[%clk 0:02:28]} 12. Qxh6 {[%clk 0:02:30.7]} 12...
Qb6 {[%clk 0:02:27.9]} 13. Qd2 {[%clk 0:02:17.2]} 13... cxd5 {[%clk 0:02:15.6]}
14. exd5 {[%clk 0:02:16.6]} 14... Rac8 {[%clk 0:02:08.1]} 15. O-O-O {[%clk
0:01:55.1]} 15... Qxf2 {[%clk 0:01:57.5]} 16. Rhf1 {[%clk 0:01:53.6]} 16... Nc4
{[%clk 0:01:29.5]} 17. Rxf2 {[%clk 0:01:49]} 17... Nxd2 {[%clk 0:01:28.8]} 18.
Rxd2 {[%clk 0:01:44.5]} 18... a6 {[%clk 0:01:29.1]} 19. Bf3 {[%clk 0:01:40.2]}
19... Rc5 {[%clk 0:01:29]} 20. Rfe2 {[%clk 0:01:39.7]} 20... Rc7 {[%clk
0:01:28.4]} 21. a4 {[%clk 0:01:37.7]} 21... Rfc8 {[%clk 0:01:28.5]} 22. g4
{[%clk 0:01:37.6]} 22... h6 {[%clk 0:01:27.6]} 23. h4 {[%clk 0:01:37.5]} 23...
Kg7 {[%clk 0:01:25.9]} 24. g5 {[%clk 0:01:37.3]} 24... hxg5 {[%clk 0:01:25.6]}
25. hxg5 {[%clk 0:01:38.2]} 25... Nh7 {[%clk 0:01:18.3]} 26. Ne4 {[%clk
0:01:35.2]} 26... b5 {[%clk 0:01:13.7]} 27. axb5 {[%clk 0:01:25.8]} 27... axb5
{[%clk 0:01:14.6]} 28. Rh2 {[%clk 0:01:23.6]} 28... Rc4 {[%clk 0:01:10.5]} 29.
Rh1 {[%clk 0:01:13.4]} 29... Ra8 {[%clk 0:01:07.2]} 30. Rdh2 {[%clk 0:01:00.7]}
30... Ra1+ {[%clk 0:01:01.5]} 31. Kd2 {[%clk 0:01:00.8]} 31... Rxh1 {[%clk
0:01:02]} 32. Rxh1 {[%clk 0:01:00.3]} 32... Rd4+ {[%clk 0:01:01.8]} 33. Ke3
{[%clk 0:00:58.2]} 33... Rxd5 {[%clk 0:00:53.5]} 34. Rxh7+ {[%clk 0:00:53.1]}
34... Kxh7 {[%clk 0:00:54.4]} 35. Nf6+ {[%clk 0:00:53.2]} 35... exf6 {[%clk
0:00:54.4]} 36. Bxd5 {[%clk 0:00:53.9]} 36... Kg7 {[%clk 0:00:48.1]} 37. gxf6+
{[%clk 0:00:52.8]} 37... Kxf6 {[%clk 0:00:49]} 38. b4 {[%clk 0:00:53]} 38... g5
{[%clk 0:00:47.3]} 39. Bc6 {[%clk 0:00:53.4]} 39... Ke5 {[%clk 0:00:46.8]} 40.
Bxb5 {[%clk 0:00:53.3]} 40... d5 {[%clk 0:00:36.5]} 41. Bd7 {[%clk 0:00:48.4]}
41... f5 {[%clk 0:00:30.6]} 42. b5 {[%clk 0:00:47.8]} 42... f4+ {[%clk
0:00:18.9]} 43. Kf3 {[%clk 0:00:47.5]} 43... Kd6 {[%clk 0:00:16.9]} 44. Be8
{[%clk 0:00:44.3]} 44... Kc5 {[%clk 0:00:15.4]} 45. c3 {[%clk 0:00:39.4]} 45...
Kb6 {[%clk 0:00:12.6]} 46. Kg4 {[%clk 0:00:37.5]} 46... Kc5 {[%clk 0:00:12.1]}
47. Bc6 {[%clk 0:00:36]} 47... Kd6 {[%clk 0:00:11.1]} 48. Ba8 {[%clk 0:00:22.5]}
48... Kc5 {[%clk 0:00:09.7]} 49. b6 {[%clk 0:00:01.6]} 49... Kxb6 {[%clk
0:00:06.3]} 50. Bxd5 {[%clk 0:00:02.3]} 50... Kc5 {[%clk 0:00:06.4]} 51. Bb3
{[%clk 0:00:03]} 51... Kb5 {[%clk 0:00:04.2]} 52. Bd5 {[%clk 0:00:02.1]} 52...
Kc5 {[%clk 0:00:04.2]} 53. Be6 {[%clk 0:00:02.6]} 53... Kd6 {[%clk 0:00:04]} 54.
Bc4 {[%clk 0:00:02.1]} 54... Kc5 {[%clk 0:00:04.9]} 55. Be2 {[%clk 0:00:02.7]}
55... Kc6 {[%clk 0:00:05.4]} 56. Kxg5 {[%clk 0:00:02.9]} 56... f3 {[%clk
0:00:04.5]} 57. Bxf3+ {[%clk 0:00:03]} 57... Kc5 {[%clk 0:00:05.4]} 58. Be2
{[%clk 0:00:03.7]} 58... Kd5 {[%clk 0:00:06.3]} 59. Kf5 {[%clk 0:00:04.4]} 59...
Kc5 {[%clk 0:00:06.4]} 60. Ke4 {[%clk 0:00:05.3]} 60... Kc6 {[%clk 0:00:07.3]}
61. Kd3 {[%clk 0:00:06.2]} 61... Kc5 {[%clk 0:00:07.5]} 62. c4 {[%clk
0:00:06.7]} 62... Kc6 {[%clk 0:00:07.6]} 63. Kc3 {[%clk 0:00:07.6]} 63... Kb6
{[%clk 0:00:08.5]} 64. Kd4 {[%clk 0:00:07.6]} 64... Kc7 {[%clk 0:00:09.4]} 65.
c5 {[%clk 0:00:08.3]} 1-0

[Event "Late-Titled-Tuesday-Blitz-January-30-2024"]
[Site "Chess.com"]
[Date "2024.01.30"]
[Round "9"]
[White "Evgeny81"]
[Black "traviscottofficial"]
[Result "1/2-1/2"]
[WhiteElo "2727"]
[BlackElo "2614"]
[TimeControl "180+1"]
[EndTime "15:45:19 PST"]
[Termination "Game drawn by stalemate"]

1. e4 {[%clk 0:03:00.9]} 1... c5 {[%clk 0:02:59.9]} 2. Nf3 {[%clk 0:03:00.4]}
2... Nc6 {[%clk 0:03:00.1]} 3. d4 {[%clk 0:03:00.6]} 3... cxd4 {[%clk 0:03:00]}
4. Nxd4 {[%clk 0:03:01.5]} 4... Nf6 {[%clk 0:02:59.9]} 5. Nc3 {[%clk 0:03:01.7]}
5... g6 {[%clk 0:03:00.1]} 6. Nxc6 {[%clk 0:02:58.6]} 6... dxc6 {[%clk
0:02:59.9]} 7. Qxd8+ {[%clk 0:02:57.5]} 7... Kxd8 {[%clk 0:03:00.5]} 8. e5
{[%clk 0:02:52.5]} 8... Nd5 {[%clk 0:02:57.2]} 9. Bd2 {[%clk 0:02:42.8]} 9...
Nxc3 {[%clk 0:02:56]} 10. Bxc3 {[%clk 0:02:42.6]} 10... Bg7 {[%clk 0:02:53.7]}
11. O-O-O+ {[%clk 0:02:41.1]} 11... Kc7 {[%clk 0:02:52.8]} 12. Bc4 {[%clk
0:02:40.8]} 12... Be6 {[%clk 0:02:46.4]} 13. Bxe6 {[%clk 0:02:39.8]} 13... fxe6
{[%clk 0:02:46.5]} 14. f4 {[%clk 0:02:29.1]} 14... Rhf8 {[%clk 0:02:44.9]} 15.
g3 {[%clk 0:02:28.6]} 15... Rad8 {[%clk 0:02:42.8]} 16. Rxd8 {[%clk 0:02:22.5]}
16... Rxd8 {[%clk 0:02:42.3]} 17. h4 {[%clk 0:02:22.2]} 17... h5 {[%clk
0:02:40]} 18. Re1 {[%clk 0:02:11.7]} 18... c5 {[%clk 0:02:36.2]} 19. a4 {[%clk
0:02:10]} 19... Kc6 {[%clk 0:02:36]} 20. b3 {[%clk 0:02:08.3]} 20... b6 {[%clk
0:02:35.3]} 21. Kb2 {[%clk 0:02:01.3]} 21... a6 {[%clk 0:02:27.4]} 22. b4 {[%clk
0:01:57.4]} 22... Rd5 {[%clk 0:02:09.1]} 23. Kb3 {[%clk 0:01:51.4]} 23... Bh6
{[%clk 0:02:06.8]} 24. Ra1 {[%clk 0:01:44.5]} 24... Bf8 {[%clk 0:01:59.3]} 25.
bxc5 {[%clk 0:01:42.5]} 25... Kxc5 {[%clk 0:01:58]} 26. Bb4+ {[%clk 0:01:35]}
26... Kc6 {[%clk 0:01:57.8]} 27. Kc3 {[%clk 0:01:31]} 27... Rd7 {[%clk
0:01:40.9]} 28. Re1 {[%clk 0:01:25.6]} 28... Rc7 {[%clk 0:01:31.4]} 29. Kb3
{[%clk 0:01:22.9]} 29... Rd7 {[%clk 0:01:27.2]} 30. Re3 {[%clk 0:01:19.3]} 30...
Rd1 {[%clk 0:01:19.7]} 31. Rc3+ {[%clk 0:01:18.7]} 31... Kd7 {[%clk 0:01:16.4]}
32. a5 {[%clk 0:01:11.8]} 32... bxa5 {[%clk 0:01:15.9]} 33. Bxa5 {[%clk
0:01:12]} 33... Rb1+ {[%clk 0:01:01.7]} 34. Kc4 {[%clk 0:01:08.1]} 34... Rb5
{[%clk 0:01:01.1]} 35. Bb4 {[%clk 0:01:00]} 35... Kc6 {[%clk 0:00:55.5]} 36. Ra3
{[%clk 0:00:59.4]} 36... Kb7 {[%clk 0:00:54.8]} 37. Rd3 {[%clk 0:00:58]} 37...
Kc7 {[%clk 0:00:53.1]} 38. Ba3 {[%clk 0:00:50.8]} 38... Rd5 {[%clk 0:00:47.8]}
39. Rb3 {[%clk 0:00:25.4]} 39... Rd2 {[%clk 0:00:40.6]} 40. Bb4 {[%clk
0:00:21.7]} 40... Rxc2+ {[%clk 0:00:39.4]} 41. Kd3 {[%clk 0:00:21.4]} 41... Ra2
{[%clk 0:00:36]} 42. Bc5 {[%clk 0:00:19.4]} 42... a5 {[%clk 0:00:33.3]} 43. Rb6
{[%clk 0:00:18.3]} 43... Kd7 {[%clk 0:00:29.4]} 44. Ra6 {[%clk 0:00:17.6]} 44...
a4 {[%clk 0:00:29.2]} 45. Ra8 {[%clk 0:00:17.3]} 45... Bg7 {[%clk 0:00:20.4]}
46. Ra7+ {[%clk 0:00:15.7]} 46... Kc6 {[%clk 0:00:19.8]} 47. Bxe7 {[%clk
0:00:15.6]} 47... Rg2 {[%clk 0:00:19.6]} 48. Ke4 {[%clk 0:00:11.6]} 48... Rxg3
{[%clk 0:00:18.9]} 49. Bd6 {[%clk 0:00:05.7]} 49... Bh6 {[%clk 0:00:19]} 50.
Rxa4 {[%clk 0:00:05.5]} 50... Rg4 {[%clk 0:00:18.9]} 51. Kf3 {[%clk 0:00:05.4]}
51... Rxh4 {[%clk 0:00:19.2]} 52. Be7 {[%clk 0:00:04.7]} 52... Rg4 {[%clk
0:00:19]} 53. Bf6 {[%clk 0:00:04.3]} 53... g5 {[%clk 0:00:15.9]} 54. Rc4+ {[%clk
0:00:03.5]} 54... Kd5 {[%clk 0:00:16]} 55. fxg5 {[%clk 0:00:03.7]} 55... Bxg5
{[%clk 0:00:15.3]} 56. Rxg4 {[%clk 0:00:03]} 56... hxg4+ {[%clk 0:00:15.5]} 57.
Kxg4 {[%clk 0:00:03.7]} 57... Bc1 {[%clk 0:00:16]} 58. Kf3 {[%clk 0:00:03.4]}
58... Bb2 {[%clk 0:00:16.6]} 59. Ke2 {[%clk 0:00:03.6]} 59... Bxe5 {[%clk
0:00:16.8]} 60. Bxe5 {[%clk 0:00:04.5]} 60... Kxe5 {[%clk 0:00:17.3]} 61. Ke3
{[%clk 0:00:05.4]} 61... Kd5 {[%clk 0:00:17.8]} 62. Kd3 {[%clk 0:00:05.9]} 62...
e5 {[%clk 0:00:18.4]} 63. Ke3 {[%clk 0:00:06.5]} 63... e4 {[%clk 0:00:19.2]} 64.
Ke2 {[%clk 0:00:07]} 64... Kd4 {[%clk 0:00:20.1]} 65. Kd2 {[%clk 0:00:07.4]}
65... e3+ {[%clk 0:00:20.7]} 66. Ke2 {[%clk 0:00:08]} 66... Ke4 {[%clk
0:00:21.6]} 67. Ke1 {[%clk 0:00:08.3]} 67... Kf5 {[%clk 0:00:22]} 68. Ke2 {[%clk
0:00:08.5]} 68... Kf4 {[%clk 0:00:22.9]} 69. Ke1 {[%clk 0:00:08.4]} 69... Kf3
{[%clk 0:00:23.6]} 70. Kf1 {[%clk 0:00:08.7]} 70... e2+ {[%clk 0:00:24.4]} 71.
Ke1 {[%clk 0:00:09.3]} 71... Ke3 {[%clk 0:00:25.3]} 1/2-1/2

[Event "Late-Titled-Tuesday-Blitz-January-30-2024"]
[Site "Chess.com"]
[Date "2024.01.30"]
[Round "9"]
[White "Vladimir_2020"]
[Black "ChristopherYoo"]
[Result "0-1"]
[WhiteElo "2774"]
[BlackElo "2940"]
[TimeControl "180+1"]
[EndTime "15:45:25 PST"]
[Termination "ChristopherYoo won on time"]

1. Nf3 {[%clk 0:03:00.9]} 1... Nf6 {[%clk 0:03:00.1]} 2. g3 {[%clk 0:03:00.4]}
2... b5 {[%clk 0:02:59]} 3. Na3 {[%clk 0:02:54.2]} 3... a6 {[%clk 0:02:58.1]} 4.
c4 {[%clk 0:02:53.7]} 4... b4 {[%clk 0:02:57.1]} 5. Nc2 {[%clk 0:02:53.2]} 5...
c5 {[%clk 0:02:45.8]} 6. Bg2 {[%clk 0:02:50]} 6... Bb7 {[%clk 0:02:45.6]} 7. O-O
{[%clk 0:02:50]} 7... e6 {[%clk 0:02:45.7]} 8. d4 {[%clk 0:02:48.3]} 8... cxd4
{[%clk 0:02:45.6]} 9. Ncxd4 {[%clk 0:02:45.2]} 9... Be7 {[%clk 0:02:42.5]} 10.
a3 {[%clk 0:02:28.4]} 10... bxa3 {[%clk 0:02:41.2]} 11. b3 {[%clk 0:02:28.5]}
11... O-O {[%clk 0:02:40.5]} 12. Bxa3 {[%clk 0:02:28.4]} 12... Bxa3 {[%clk
0:02:41.1]} 13. Rxa3 {[%clk 0:02:28.5]} 13... a5 {[%clk 0:02:33.4]} 14. Qc2
{[%clk 0:02:08.6]} 14... Na6 {[%clk 0:02:28.7]} 15. Rfa1 {[%clk 0:02:08]} 15...
Nb4 {[%clk 0:02:28.9]} 16. Qd1 {[%clk 0:02:05.4]} 16... Qb6 {[%clk 0:02:25.9]}
17. Nc2 {[%clk 0:01:50.9]} 17... Ne4 {[%clk 0:02:12.7]} 18. e3 {[%clk
0:01:47.7]} 18... Nc5 {[%clk 0:02:05.8]} 19. Nfd4 {[%clk 0:01:29.6]} 19... Bxg2
{[%clk 0:01:58.1]} 20. Kxg2 {[%clk 0:01:29.6]} 20... Rfb8 {[%clk 0:01:46.6]} 21.
Nxb4 {[%clk 0:01:13]} 21... Qxb4 {[%clk 0:01:47.5]} 22. Nb5 {[%clk 0:01:12.7]}
22... d5 {[%clk 0:01:43.8]} 23. Qc2 {[%clk 0:00:47.6]} 23... Rb7 {[%clk
0:01:30.6]} 24. Nd4 {[%clk 0:00:42.5]} 24... dxc4 {[%clk 0:01:25.1]} 25. Qxc4
{[%clk 0:00:33.5]} 25... Qxc4 {[%clk 0:01:23.6]} 26. bxc4 {[%clk 0:00:33.7]}
26... a4 {[%clk 0:01:24]} 27. Nb5 {[%clk 0:00:33.8]} 27... Kf8 {[%clk
0:01:20.3]} 28. h4 {[%clk 0:00:32.7]} 28... h5 {[%clk 0:01:20]} 29. Kf3 {[%clk
0:00:32.3]} 29... Ke7 {[%clk 0:01:18]} 30. R1a2 {[%clk 0:00:27.7]} 30... f6
{[%clk 0:01:03.4]} 31. Ke2 {[%clk 0:00:20.6]} 31... g5 {[%clk 0:01:01.9]} 32.
hxg5 {[%clk 0:00:19.2]} 32... fxg5 {[%clk 0:01:02.8]} 33. Ra1 {[%clk 0:00:19.2]}
33... Kf6 {[%clk 0:01:02.9]} 34. Kf3 {[%clk 0:00:17]} 34... Kg6 {[%clk
0:00:57.8]} 35. Kg2 {[%clk 0:00:17.2]} 35... Rd7 {[%clk 0:00:46.7]} 36. R1a2
{[%clk 0:00:13.3]} 36... g4 {[%clk 0:00:41.2]} 37. Nc3 {[%clk 0:00:10.3]} 37...
Rd3 {[%clk 0:00:41.6]} 38. Nb5 {[%clk 0:00:10.2]} 38... Rxa3 {[%clk 0:00:31.5]}
39. Rxa3 {[%clk 0:00:10.3]} 39... Rd8 {[%clk 0:00:31.8]} 40. Nd4 {[%clk
0:00:10.5]} 40... Kf6 {[%clk 0:00:28.1]} 41. f4 {[%clk 0:00:09.1]} 41... gxf3+
{[%clk 0:00:14.1]} 42. Kxf3 {[%clk 0:00:08.7]} 42... e5 {[%clk 0:00:14.8]} 43.
Nb5 {[%clk 0:00:08.2]} 43... Rd3 {[%clk 0:00:10.2]} 44. Ra2 {[%clk 0:00:07.5]}
44... Kf5 {[%clk 0:00:08.4]} 45. Ke2 {[%clk 0:00:06]} 45... Ke4 {[%clk
0:00:06.5]} 46. Kf2 {[%clk 0:00:06.2]} 46... Rb3 {[%clk 0:00:01.8]} 47. Nd6+
{[%clk 0:00:06]} 47... Kd3 {[%clk 0:00:02.3]} 48. Kf3 {[%clk 0:00:05.6]} 48...
a3 {[%clk 0:00:02.2]} 49. g4 {[%clk 0:00:05.5]} 49... hxg4+ {[%clk 0:00:02.1]}
50. Kxg4 {[%clk 0:00:05.9]} 50... Kxe3 {[%clk 0:00:02.7]} 51. Nb5 {[%clk
0:00:06.1]} 51... e4 {[%clk 0:00:02.8]} 52. Nxa3 {[%clk 0:00:05.8]} 52... Kd3
{[%clk 0:00:03.3]} 53. Nb5 {[%clk 0:00:05.4]} 53... e3 {[%clk 0:00:03.8]} 54.
Kf3 {[%clk 0:00:05.5]} 54... Ne4 {[%clk 0:00:04.2]} 55. Nc7 {[%clk 0:00:04.2]}
55... Nd2+ {[%clk 0:00:04.2]} 56. Kg2 {[%clk 0:00:04.4]} 56... e2 {[%clk
0:00:04.2]} 57. Ra1 {[%clk 0:00:04.6]} 57... Rb1 {[%clk 0:00:03.1]} 58. Ra3+
{[%clk 0:00:04.1]} 58... Kxc4 {[%clk 0:00:02.7]} 59. Re3 {[%clk 0:00:03.9]}
59... e1=Q {[%clk 0:00:03.1]} 60. Rxe1 {[%clk 0:00:03.7]} 60... Rxe1 {[%clk
0:00:04]} 0-1

[Event "Late-Titled-Tuesday-Blitz-January-30-2024"]
[Site "Chess.com"]
[Date "2024.01.30"]
[Round "9"]
[White "dmitrijiIM"]
[Black "Zura_19"]
[Result "1-0"]
[WhiteElo "2898"]
[BlackElo "2579"]
[TimeControl "180+1"]
[EndTime "15:45:25 PST"]
[Termination "dmitrijiIM won by resignation"]

1. d4 {[%clk 0:03:00.9]} 1... Nf6 {[%clk 0:02:52.3]} 2. c4 {[%clk 0:03:00.6]}
2... e6 {[%clk 0:02:51.6]} 3. Nc3 {[%clk 0:02:59.5]} 3... Bb4 {[%clk 0:02:51.6]}
4. e3 {[%clk 0:02:59.7]} 4... b6 {[%clk 0:02:49.7]} 5. Ne2 {[%clk 0:02:58.3]}
5... Bb7 {[%clk 0:02:48.9]} 6. a3 {[%clk 0:02:53.1]} 6... Bxc3+ {[%clk
0:02:46.1]} 7. Nxc3 {[%clk 0:02:54]} 7... O-O {[%clk 0:02:46.5]} 8. Bd3 {[%clk
0:02:51.5]} 8... a5 {[%clk 0:02:42.9]} 9. e4 {[%clk 0:02:50.3]} 9... d6 {[%clk
0:02:35]} 10. Bg5 {[%clk 0:02:38.1]} 10... e5 {[%clk 0:02:26.8]} 11. d5 {[%clk
0:02:14.6]} 11... h6 {[%clk 0:02:08.9]} 12. Bh4 {[%clk 0:02:10.2]} 12... Na6
{[%clk 0:01:57.5]} 13. Rb1 {[%clk 0:01:34.8]} 13... Nc5 {[%clk 0:01:45.8]} 14.
Bc2 {[%clk 0:01:35]} 14... a4 {[%clk 0:01:21.8]} 15. O-O {[%clk 0:01:01.9]}
15... g5 {[%clk 0:00:34.6]} 16. Bg3 {[%clk 0:01:01.8]} 16... Bc8 {[%clk
0:00:28.6]} 17. f3 {[%clk 0:00:48.8]} 17... Bd7 {[%clk 0:00:24.5]} 18. Bf2
{[%clk 0:00:48.5]} 18... Qe8 {[%clk 0:00:24.3]} 19. Be3 {[%clk 0:00:46.3]} 19...
Nh5 {[%clk 0:00:23.8]} 20. g3 {[%clk 0:00:46.3]} 20... Ng7 {[%clk 0:00:15.3]}
21. g4 {[%clk 0:00:40]} 21... f6 {[%clk 0:00:15.5]} 22. h4 {[%clk 0:00:39.3]}
22... Qe7 {[%clk 0:00:08.2]} 23. hxg5 {[%clk 0:00:36.3]} 23... fxg5 {[%clk
0:00:07.8]} 24. Ne2 {[%clk 0:00:31.3]} 24... Rf7 {[%clk 0:00:05.7]} 25. Ng3
{[%clk 0:00:31]} 25... Raf8 {[%clk 0:00:03.5]} 26. Nf5 {[%clk 0:00:31]} 26...
Nxf5 {[%clk 0:00:02.2]} 27. exf5 {[%clk 0:00:30.3]} 27... Qe8 {[%clk 0:00:02.7]}
28. Kg2 {[%clk 0:00:26.6]} 28... e4 {[%clk 0:00:02.7]} 29. Bd4 {[%clk
0:00:20.9]} 29... exf3+ {[%clk 0:00:03]} 30. Rxf3 {[%clk 0:00:21.8]} 30... Re7
{[%clk 0:00:03.3]} 31. Bc3 {[%clk 0:00:17.5]} 31... Ne4 {[%clk 0:00:03.5]} 32.
Bd4 {[%clk 0:00:14.7]} 32... Nf6 {[%clk 0:00:03.5]} 33. Bxf6 {[%clk 0:00:13.6]}
33... Rxf6 {[%clk 0:00:04.3]} 34. Qd4 {[%clk 0:00:14.2]} 34... Re5 {[%clk
0:00:03.6]} 35. Rbf1 {[%clk 0:00:11]} 35... Kg7 {[%clk 0:00:03.9]} 36. R1f2
{[%clk 0:00:10.7]} 36... c6 {[%clk 0:00:03.4]} 37. Rd2 {[%clk 0:00:03.4]} 37...
cxd5 {[%clk 0:00:02.5]} 38. cxd5 {[%clk 0:00:04.3]} 38... Bb5 {[%clk 0:00:02.8]}
39. Bd3 {[%clk 0:00:04]} 39... Bxd3 {[%clk 0:00:02.4]} 40. Qxd3 {[%clk
0:00:02.5]} 40... Re4 {[%clk 0:00:02.8]} 41. Kh3 {[%clk 0:00:02.8]} 41... Qe5
{[%clk 0:00:02.5]} 42. Rg3 {[%clk 0:00:02.1]} 42... h5 {[%clk 0:00:02.7]} 43.
Rdg2 {[%clk 0:00:01.8]} 43... h4 {[%clk 0:00:01.8]} 44. Rf3 {[%clk 0:00:02]}
44... Kh6 {[%clk 0:00:02.1]} 45. Qd2 {[%clk 0:00:01.9]} 45... Rd4 {[%clk
0:00:02.6]} 46. Rd3 {[%clk 0:00:01.8]} 46... Rxd3+ {[%clk 0:00:02.5]} 47. Qxd3
{[%clk 0:00:02.7]} 47... Rf7 {[%clk 0:00:02.8]} 48. Qf3 {[%clk 0:00:03]} 48...
Re7 {[%clk 0:00:02.7]} 49. Rf2 {[%clk 0:00:03.4]} 49... Kh7 {[%clk 0:00:02.4]}
50. f6 {[%clk 0:00:03.5]} 50... Rf7 {[%clk 0:00:03]} 51. Qd3+ {[%clk 0:00:03]}
51... Kg8 {[%clk 0:00:03.1]} 52. Rf5 {[%clk 0:00:03.3]} 52... Qe1 {[%clk
0:00:02.9]} 53. Rxg5+ {[%clk 0:00:03.4]} 53... Kf8 {[%clk 0:00:02.7]} 54. Qf3
{[%clk 0:00:02.6]} 54... Qe5 {[%clk 0:00:02.3]} 55. Rxe5 {[%clk 0:00:02.7]}
55... dxe5 {[%clk 0:00:02.6]} 56. g5 {[%clk 0:00:03.6]} 1-0

[Event "Late-Titled-Tuesday-Blitz-January-30-2024"]
[Site "Chess.com"]
[Date "2024.01.30"]
[Round "9"]
[White "Rikikits"]
[Black "ansko1999"]
[Result "0-1"]
[WhiteElo "2829"]
[BlackElo "2689"]
[TimeControl "180+1"]
[EndTime "15:45:30 PST"]
[Termination "ansko1999 won on time"]

1. d4 {[%clk 0:03:00.9]} 1... Nf6 {[%clk 0:02:58.4]} 2. c4 {[%clk 0:02:59]} 2...
e6 {[%clk 0:02:57.3]} 3. Nc3 {[%clk 0:02:57.5]} 3... Bb4 {[%clk 0:02:56.4]} 4.
Qb3 {[%clk 0:02:55.3]} 4... c5 {[%clk 0:02:51]} 5. a3 {[%clk 0:02:54.2]} 5...
Bxc3+ {[%clk 0:02:39.7]} 6. Qxc3 {[%clk 0:02:55.1]} 6... cxd4 {[%clk 0:02:27.1]}
7. Qxd4 {[%clk 0:02:56]} 7... Nc6 {[%clk 0:02:21.9]} 8. Qc3 {[%clk 0:02:54.6]}
8... O-O {[%clk 0:02:15.1]} 9. Nf3 {[%clk 0:02:51.4]} 9... d5 {[%clk 0:02:12.5]}
10. e3 {[%clk 0:02:50.1]} 10... e5 {[%clk 0:02:00.8]} 11. Nxe5 {[%clk
0:02:36.5]} 11... Nxe5 {[%clk 0:02:00.1]} 12. Qxe5 {[%clk 0:02:36.2]} 12... Re8
{[%clk 0:02:00.8]} 13. Qd4 {[%clk 0:02:35]} 13... Re4 {[%clk 0:01:54.8]} 14. Qd2
{[%clk 0:02:26.2]} 14... d4 {[%clk 0:01:44]} 15. Be2 {[%clk 0:02:23.5]} 15...
Qe7 {[%clk 0:01:27.6]} 16. O-O {[%clk 0:02:15.9]} 16... dxe3 {[%clk 0:01:24.6]}
17. fxe3 {[%clk 0:02:16.8]} 17... Bg4 {[%clk 0:01:23.6]} 18. Bf3 {[%clk
0:02:06]} 18... Bxf3 {[%clk 0:01:21.6]} 19. gxf3 {[%clk 0:02:06.9]} 19... Rxc4
{[%clk 0:01:21]} 20. e4 {[%clk 0:02:06.3]} 20... Rd8 {[%clk 0:01:20.3]} 21. Qf2
{[%clk 0:02:04]} 21... Qc7 {[%clk 0:00:48.9]} 22. Bg5 {[%clk 0:01:57.1]} 22...
Rc2 {[%clk 0:00:46.5]} 23. Rac1 {[%clk 0:01:54.5]} 23... Rxc1 {[%clk 0:00:23.3]}
24. Rxc1 {[%clk 0:01:52.5]} 24... Qe5 {[%clk 0:00:21.5]} 25. Be3 {[%clk
0:01:42.2]} 25... b6 {[%clk 0:00:20.4]} 26. Rc2 {[%clk 0:01:37.5]} 26... Rd1+
{[%clk 0:00:18.6]} 27. Kg2 {[%clk 0:01:37.2]} 27... h6 {[%clk 0:00:19.1]} 28.
Rd2 {[%clk 0:01:33.9]} 28... Rb1 {[%clk 0:00:18]} 29. Qg3 {[%clk 0:01:30.3]}
29... Qb5 {[%clk 0:00:15.5]} 30. Qf2 {[%clk 0:01:21.4]} 30... Qc4 {[%clk
0:00:14.1]} 31. Qe2 {[%clk 0:01:12.9]} 31... Qa2 {[%clk 0:00:12.6]} 32. e5
{[%clk 0:01:06.5]} 32... Nd5 {[%clk 0:00:11.4]} 33. Kg3 {[%clk 0:00:47.1]} 33...
Nxe3 {[%clk 0:00:10.3]} 34. Qxe3 {[%clk 0:00:47.4]} 34... Rxb2 {[%clk 0:00:10]}
35. Rd8+ {[%clk 0:00:47.3]} 35... Kh7 {[%clk 0:00:09.4]} 36. Qe4+ {[%clk
0:00:34]} 36... g6 {[%clk 0:00:09.8]} 37. Qf4 {[%clk 0:00:34.7]} 37... Rg2+
{[%clk 0:00:09.3]} 38. Kh3 {[%clk 0:00:35.3]} 38... Rf2 {[%clk 0:00:03.5]} 39.
Rd7 {[%clk 0:00:31.1]} 39... Qe6+ {[%clk 0:00:03.8]} 40. Kg3 {[%clk 0:00:30]}
40... Rxf3+ {[%clk 0:00:03.9]} 41. Kxf3 {[%clk 0:00:30.3]} 41... Qxd7 {[%clk
0:00:04.5]} 42. Qc4 {[%clk 0:00:25]} 42... Qf5+ {[%clk 0:00:04.2]} 43. Kg2
{[%clk 0:00:24.8]} 43... Qg5+ {[%clk 0:00:04.1]} 44. Kf3 {[%clk 0:00:24.5]}
44... Qf5+ {[%clk 0:00:04.5]} 45. Kg2 {[%clk 0:00:25.1]} 45... Kg7 {[%clk
0:00:04]} 46. Qd4 {[%clk 0:00:24.7]} 46... Qe6 {[%clk 0:00:04.2]} 47. Kf3 {[%clk
0:00:24]} 47... a6 {[%clk 0:00:04.6]} 48. h4 {[%clk 0:00:21.2]} 48... b5 {[%clk
0:00:05]} 49. Qc5 {[%clk 0:00:20.6]} 49... Qf5+ {[%clk 0:00:05.1]} 50. Ke3
{[%clk 0:00:20.4]} 50... Qe6 {[%clk 0:00:05]} 51. Kd4 {[%clk 0:00:19.8]} 51...
Qc4+ {[%clk 0:00:04.1]} 52. Qxc4 {[%clk 0:00:20.4]} 52... bxc4 {[%clk 0:00:05]}
53. Kxc4 {[%clk 0:00:21]} 53... g5 {[%clk 0:00:05.7]} 54. hxg5 {[%clk
0:00:19.2]} 54... hxg5 {[%clk 0:00:06.6]} 55. Kd4 {[%clk 0:00:18.6]} 55... Kg6
{[%clk 0:00:06.5]} 56. Ke4 {[%clk 0:00:19.5]} 56... Kh5 {[%clk 0:00:06.9]} 57.
Kf5 {[%clk 0:00:20]} 57... g4 {[%clk 0:00:07.3]} 58. Kf6 {[%clk 0:00:20.9]}
58... g3 {[%clk 0:00:07.9]} 59. Kxf7 {[%clk 0:00:21.8]} 59... g2 {[%clk
0:00:08.3]} 60. e6 {[%clk 0:00:22.7]} 60... g1=Q {[%clk 0:00:09]} 61. e7 {[%clk
0:00:23.6]} 61... Qg6+ {[%clk 0:00:09.5]} 62. Kf8 {[%clk 0:00:24.5]} 62... Qf6+
{[%clk 0:00:09.9]} 63. Ke8 {[%clk 0:00:24.5]} 63... Kg6 {[%clk 0:00:10.6]} 64.
Kd7 {[%clk 0:00:25.4]} 64... Qd4+ {[%clk 0:00:10.9]} 65. Kc8 {[%clk 0:00:25.6]}
65... Qc5+ {[%clk 0:00:11.3]} 66. Kd8 {[%clk 0:00:25.4]} 66... Qd6+ {[%clk
0:00:11.6]} 67. Kc8 {[%clk 0:00:25.7]} 67... Qxe7 {[%clk 0:00:11.6]} 0-1